[Event "Niedersachsen-ch Meister 2024"]
[Site "Verden Aller"]
[Date "2024.01.05"]
[Round "3.14"]
[White "Bennemann, Ingmar"]
[Black "Elsner, Robert"]
[Result "0-1"]
[ECO "A46"]
[WhiteElo "1971"]
[BlackElo "2030"]
[Annotator "NA RC"]
[PlyCount "92"]
[EventDate "2024.01.01"]
[EventType "swiss"]
[EventCountry "GER"]
[SourceTitle "playchess.com"]
[Source "ChessBase"]
[SourceQuality "1"]
[TimeControl "40/5400+30:1800+30"]

1. d4 {[%emt 0:00:01]} Nf6 {[%emt 0:00:05]} 2. Nf3 {[%emt 0:00:08]} e6 {[%emt 0:00:06]} 3. Bg5 {[%emt 0:00:11]} h6 {[%emt 0:00:40]} 4. Bxf6 {[%emt 0:00:06]} Qxf6 {[%emt 0:00:02]} 5. e4 {[%emt 0:00:14]} d6 {[%emt 0:00:43]} 6. h4 $11 {[%emt 0:00:09]} g6 {[%emt 0:00:50]} 7. Nbd2 {[%emt 0:01:10]} Bg7 {[%emt 0:01:31]} 8. Bd3 {[%emt 0:00:32]} Nd7 {[%emt 0:04:11]} 9. c3 {[%emt 0:01:09]} a6 {[%emt 0:02:49]} 10. a4 {[%emt 0:04:06]} b6 {[%emt 0:02:31]} 11. Qe2 {[%emt 0:04:59]} Bb7 {[%emt 0:03:29]} 12. Nc4 {[%emt 0:00:45]} O-O {[%emt 0:02:49]} 13. h5 {[%emt 0:01:43]} g5 {[%emt 0:02:01]} 14. Ne3 {[%emt 0:05:39]} Qe7 {[%emt 0:06:45]} 15. Nh2 {[%emt 0:10:25]} Nf6 {[%emt 0:17:12]} 16. Neg4 {[%emt 0:25:32]} Nd7 {[%emt 0:15:28]} 17. O-O {[%emt 0:05:09]} c5 {[%emt 0:02:19]} 18. e5 {[%emt 0:05:22]} cxd4 {[%emt 0:02:39]} 19. cxd4 {[%emt 0:00:17]} dxe5 {[%emt 0:01:18]} 20. dxe5 {[%emt 0:02:49]} Nc5 {[%emt 0:00:58]} 21. Bc4 {[%emt 0:02:26]} Rad8 {[%emt 0:03:26]} 22. Rad1 {[%emt 0:06:30]} Rxd1 {[%emt 0:06:53]} 23. Rxd1 {[%emt 0:00:32]} Rd8 {[%emt 0:00:03]} 24. Nf1 {[%emt 0:12:58]} Nxa4 {[%emt 0:07:59]} 25. Rxd8+ {[%emt 0:01:06]} Qxd8 {[%emt 0:00:08]} 26. Bxa6 {[%emt 0:00:36]} Bxa6 {[%emt 0:00:52]} 27. Qxa6 {[%emt 0:00:07]} Nxb2 {[%emt 0:00:10]} 28. Qa3 {[%emt 0:07:38]} Nc4 {[%emt 0:03:14]} 29. Qc3 {[%emt 0:00:45]} Qd5 {[%emt 0:06:37]} 30. Nf6+ {[%emt 0:01:08]} Bxf6 {[%emt 0:00:04]} 31. exf6 {[%emt 0:00:04]} b5 {[%emt 0:00:32]} 32. Qb4 {[%emt 0:00:33]} e5 {[%emt 0:05:18]} 33. Qe7 {[%emt 0:00:40]} Qe6 {[%emt 0:00:07]} 34. Qd8+ {[%emt 0:00:47]} Kh7 {[%emt 0:00:04]} 35. Ng3 {[%emt 0:00:49]} Nd6 {[%emt 0:00:30]} 36. f3 {[%emt 0:00:28]} b4 {[%emt 0:01:38]} 37. Ne4 {[%emt 0:00:03]} Nxe4 {[%emt 0:00:08]} 38. fxe4 {[%emt 0:00:15]} b3 {[%emt 0:00:52]} 39. Qe7 {[%emt 0:00:15]} b2 {[%emt 0:01:31]} 40. Qb4 {[%emt 0:01:52]} Qa2 {[%emt 0:01:11]} 41. Qf8 {[%emt 0:00:53]} b1=Q+ {[%emt 0:00:45]} 42. Kh2 {[%emt 0:00:20]} Qxg2+ {[%emt 0:00:04]} 43. Kxg2 {[%emt 0:00:10]} Qxe4+ {[%emt 0:00:04]} 44. Kg3 {[%emt 0:11:36]} Qf4+ {[%emt 0:00:12]} 45. Kh3 {[%emt 0:00:04]} Qxf6 {[%emt 0:00:12]} 46. Qa3 {[%emt 0:00:23]} Qf5+ {[%emt 0:00:17]} 0-1

[Event "Niedersachsen-ch Meister 2024"]
[Site "Verden Aller"]
[Date "2024.01.05"]
[Round "4.1"]
[White "Abel, Dennes"]
[Black "Polster, Christian"]
[Result "1-0"]
[ECO "A17"]
[WhiteElo "2417"]
[BlackElo "2244"]
[Annotator "RC"]
[PlyCount "103"]
[EventDate "2024.01.01"]
[EventType "swiss"]
[EventCountry "GER"]
[SourceTitle "playchess.com"]
[Source "ChessBase"]
[SourceQuality "1"]
[TimeControl "40/5400+30:1800+30"]

1. Nf3 {[%emt 0:00:11]} d5 {[%emt 0:00:10]} 2. e3 {[%emt 0:00:12]} Nf6 {[%emt 0:00:31]} 3. c4 {[%emt 0:00:07]} c5 {[%emt 0:00:30]} 4. cxd5 {[%emt 0:00:56]} Nxd5 {[%emt 0:00:09]} 5. Nc3 {[%emt 0:00:54]} e6 {[%emt 0:00:11]} 6. Nxd5 {[%emt 0:01:08]} exd5 {[%emt 0:06:31]} 7. b4 {[%emt 0:01:02]} cxb4 {[%emt 0:01:58]} 8. Bb2 {[%emt 0:01:41]} Nc6 {[%emt 0:00:55]} 9. Bd3 {[%emt 0:04:28]} Bg4 {[%emt 0:07:24]} 10. Qb1 {[%emt 0:03:16]} h5 {[%emt 0:02:15]} 11. h3 {[%emt 0:08:45]} Be6 {[%emt 0:12:33]} 12. Nd4 {[%emt 0:03:16]} Rh6 {[%emt 0:14:29]} 13. O-O {[%emt 0:08:40]} h4 {[%emt 0:13:07]} 14. f4 {[%emt 0:07:34]} Bd7 {[%emt 0:01:55]} 15. Nf3 {[%emt 0:06:43]} Qe7 {[%emt 0:14:18]} 16. a3 {[%emt 0:13:39]} a5 {[%emt 0:08:57]} 17. Re1 {[%emt 0:05:28]} Qc5 {[%emt 0:02:24]} 18. Kh1 {[%emt 0:03:44]} b5 {[%emt 0:01:04]} 19. Bd4 {[%emt 0:06:26]} Qd6 {[%emt 0:01:26]} 20. Bxb5 {[%emt 0:01:07]} Nxd4 {[%emt 0:05:59]} 21. exd4+ {[%emt 0:05:24]} Re6 {[%emt 0:01:56]} 22. Bxd7+ {[%emt 0:02:59]} Qxd7 {[%emt 0:00:19]} 23. Ne5 {[%emt 0:00:34]} Qb7 {[%emt 0:01:42]} 24. f5 {[%emt 0:00:31]} Rea6 {[%emt 0:00:02]} 25. Ng6+ {[%emt 0:05:08]} Kd7 {[%emt 0:00:01]} 26. Nxf8+ {[%emt 0:00:06]} Rxf8 {[%emt 0:00:05]} 27. axb4 {[%emt 0:00:11]} axb4 {[%emt 0:01:09]} 28. Rxa6 {[%emt 0:00:29]} Qxa6 {[%emt 0:00:04]} 29. Qxb4 {[%emt 0:00:13]} Re8 {[%emt 0:00:39]} 30. Rb1 {[%emt 0:01:38]} Rc8 {[%emt 0:01:36]} 31. d3 {[%emt 0:04:12]} Qd6 {[%emt 0:01:06]} 32. Qe1 {[%emt 0:01:25]} Qf4 {[%emt 0:00:27]} 33. Rb7+ {[%emt 0:01:55]} Rc7 {[%emt 0:00:08]} 34. Rxc7+ {[%emt 0:00:25]} Qxc7 {[%emt 0:00:40]} 35. Qxh4 {[%emt 0:00:45]} Qc1+ {[%emt 0:00:14]} 36. Kh2 {[%emt 0:00:01]} Qe3 {[%emt 0:00:20]} 37. Qg4 {[%emt 0:00:19]} Ke7 {[%emt 0:00:55]} 38. Qxg7 {[%emt 0:00:53]} Qf4+ {[%emt 0:00:36]} 39. Qg3 {[%emt 0:00:08]} Qxd4 {[%emt 0:00:30]} 40. Qf3 {[%emt 0:03:19]} Kf6 {[%emt 0:00:29]} 41. g4 {[%emt 0:06:25]} Kg5 {[%emt 0:06:23]} 42. Qe2 {[%emt 0:04:31]} Qf4+ {[%emt 0:01:18]} 43. Kg2 {[%emt 0:00:09]} f6 {[%emt 0:00:21]} 44. Qf2 {[%emt 0:06:48]} Qc1 {[%emt 0:00:49]} 45. Kg3 {[%emt 0:03:58]} Qc7+ {[%emt 0:03:20]} 46. Kf3 {[%emt 0:00:05]} Qf4+ {[%emt 0:00:14]} 47. Ke2 {[%emt 0:00:01]} Qc7 {[%emt 0:01:22]} 48. Qe3+ {[%emt 0:04:40]} Kh4 {[%emt 0:00:11]} 49. Kf1 {[%emt 0:00:25]} Qb8 {[%emt 0:02:40]} 50. Kg2 {[%emt 0:00:47]} Qf8 {[%emt 0:02:34]} 51. Qf4 {[%emt 0:00:33]} Qb4 {[%emt 0:03:04]} 52. Qh6# {[%emt 0:00:11]} 1-0

[Event "Niedersachsen-ch Meister 2024"]
[Site "Verden Aller"]
[Date "2024.01.05"]
[Round "4.3"]
[White "Knuedel, Torben"]
[Black "Hampel, Felix"]
[Result "0-1"]
[ECO "B47"]
[WhiteElo "2287"]
[BlackElo "2294"]
[Annotator "ChessBase"]
[PlyCount "88"]
[EventDate "2024.01.01"]
[EventType "swiss"]
[EventCountry "GER"]
[SourceTitle "playchess.com"]
[Source "ChessBase"]
[SourceQuality "1"]
[TimeControl "40/5400+30:1800+30"]

1. e4 {[%emt 0:00:03]} c5 {[%emt 0:00:06]} 2. Nc3 {[%emt 0:00:32]} e6 {[%emt 0:00:08]} 3. Nf3 {[%emt 0:00:14]} Nc6 {[%emt 0:00:06]} 4. d4 {[%emt 0:00:05]} cxd4 {[%emt 0:00:06]} 5. Nxd4 {[%emt 0:00:05]} Qc7 {[%emt 0:00:07]} 6. f4 {[%emt 0:00:40]} a6 {[%emt 0:00:10]} 7. Nxc6 {[%emt 0:00:16]} Qxc6 {[%emt 0:00:07]} 8. Bd3 {[%emt 0:00:25]} b5 {[%emt 0:00:06]} 9. Qe2 {[%emt 0:00:25]} Bb7 {[%emt 0:00:09]} 10. Bd2 {[%emt 0:07:55]} Bc5 {[%emt 0:00:20]} 11. a3 {[%emt 0:01:03]} Ne7 {[%emt 0:01:26]} 12. O-O-O {[%emt 0:02:35]} O-O {[%emt 0:00:08]} 13. h4 {[%emt 0:01:20]} f5 {[%emt 0:01:11]} 14. h5 {[%emt 0:01:15]} d5 {[%emt 0:01:33]} 15. exd5 {[%emt 0:02:48]} exd5 {[%emt 0:00:26]} 16. h6 {[%emt 0:03:39]} g6 {[%emt 0:01:00]} 17. Qe5 {[%emt 0:09:17]} Qf6 {[%emt 0:18:36]} 18. Rhe1 {[%emt 0:08:00]} Qxe5 {[%emt 0:03:12]} 19. Rxe5 {[%emt 0:00:26]} Kf7 {[%emt 0:01:56]} 20. Rde1 {[%emt 0:04:13]} Rfe8 {[%emt 0:05:00]} 21. Nd1 {[%emt 0:19:27]} Bd6 {[%emt 0:10:18]} 22. Re6 {[%emt 0:05:34]} Rad8 {[%emt 0:00:45]} 23. Nf2 {[%emt 0:01:17]} d4 {[%emt 0:16:50]} 24. Nh3 {[%emt 0:03:35]} Bd5 {[%emt 0:38:44]} 25. R6e2 {[%emt 0:00:56]} Kg8 {[%emt 0:00:00]} 26. Ba5 {[%emt 0:06:27]} Rb8 {[%emt 0:00:00]} 27. Bb4 {[%emt 0:00:43]} Bxb4 {[%emt 0:00:00]} 28. axb4 {[%emt 0:00:15]} Kf8 {[%emt 0:00:00]} 29. Ng5 {[%emt 0:04:34]} Bg8 {[%emt 0:00:00]} 30. g4 {[%emt 0:14:21]} fxg4 {[%emt 0:00:00]} 31. Ne4 {[%emt 0:00:22]} Nf5 {[%emt 0:00:00]} 32. Nc5 {[%emt 0:00:43]} Rxe2 {[%emt 0:00:00]} 33. Rxe2 {[%emt 0:00:15]} Rd8 {[%emt 0:00:00]} 34. Nxa6 {[%emt 0:01:03]} Ne3 {[%emt 0:00:00]} 35. Bxb5 {[%emt 0:00:31]} g3 {[%emt 0:00:00]} 36. Bc6 {[%emt 0:00:51]} Bc4 {[%emt 0:00:00]} 37. Re1 {[%emt 0:01:35]} Bxa6 {[%emt 0:00:00]} 38. b5 {[%emt 0:00:05]} Bc8 {[%emt 0:00:00]} 39. b4 {[%emt 0:00:27]} Bf5 {[%emt 0:00:00]} 40. Kd2 {[%emt 0:01:42]} Nxc2 {[%emt 0:00:00]} 41. Rc1 {[%emt 0:30:05]} Nxb4 {[%emt 0:20:06]} 42. Bg2 {[%emt 0:00:07]} Rb8 {[%emt 0:01:19]} 43. Rc7 {[%emt 0:00:31]} Rxb5 {[%emt 0:03:15]} 44. Rxh7 {[%emt 0:00:13]} Kg8 {[%emt 0:00:11]} 0-1

[Event "Niedersachsen-ch Meister 2024"]
[Site "Verden Aller"]
[Date "2024.01.05"]
[Round "4.4"]
[White "Voege, Tobias"]
[Black "von Mettenheim, Johannes"]
[Result "1/2-1/2"]
[ECO "E46"]
[WhiteElo "2283"]
[BlackElo "2284"]
[Annotator "RC"]
[PlyCount "41"]
[EventDate "2024.01.01"]
[EventType "swiss"]
[EventCountry "GER"]
[SourceTitle "playchess.com"]
[Source "ChessBase"]
[SourceQuality "1"]
[TimeControl "40/5400+30:1800+30"]

1. c4 {[%emt 0:00:05]} Nf6 {[%emt 0:00:06]} 2. Nc3 {[%emt 0:00:12]} e6 {[%emt 0:00:07]} 3. d4 {[%emt 0:00:06]} Bb4 {[%emt 0:00:17]} 4. Bd2 {[%emt 0:00:04]} O-O {[%emt 0:01:59]} 5. e3 {[%emt 0:00:14]} d5 {[%emt 0:01:29]} 6. Rc1 {[%emt 0:00:34]} c5 {[%emt 0:00:15]} 7. Nf3 {[%emt 0:03:01]} b6 {[%emt 0:00:13]} 8. cxd5 {[%emt 0:07:54]} exd5 {[%emt 0:03:45]} 9. Ne5 {[%emt 0:04:11]} Be6 {[%emt 0:13:00]} 10. Bd3 {[%emt 0:06:31]} Nfd7 {[%emt 0:01:43]} 11. O-O {[%emt 0:09:49]} Nxe5 {[%emt 0:15:45]} 12. dxe5 {[%emt 0:00:08]} Nc6 {[%emt 0:03:00]} 13. a3 {[%emt 0:09:33]} Bxc3 {[%emt 0:13:31]} 14. Bxc3 {[%emt 0:00:26]} d4 {[%emt 0:03:19]} 15. exd4 {[%emt 0:01:08]} cxd4 {[%emt 0:01:00]} 16. Bd2 {[%emt 0:01:50]} Nxe5 {[%emt 0:02:05]} 17. Be4 {[%emt 0:10:46]} Bd5 {[%emt 0:02:52]} 18. Bxh7+ {[%emt 0:00:37]} Kxh7 {[%emt 0:00:09]} 19. Qh5+ {[%emt 0:00:03]} Kg8 {[%emt 0:00:08]} 20. Qxe5 {[%emt 0:00:06]} Re8 {[%emt 0:01:08]} 21. Qxd4 {[%emt 0:04:53]} 1/2-1/2

[Event "Niedersachsen-ch Meister 2024"]
[Site "Verden Aller"]
[Date "2024.01.05"]
[Round "4.5"]
[White "Riemay, David"]
[Black "Gentemann, Moritz"]
[Result "1/2-1/2"]
[ECO "B22"]
[WhiteElo "2213"]
[BlackElo "2239"]
[Annotator "RC"]
[PlyCount "125"]
[EventDate "2024.01.01"]
[EventType "swiss"]
[EventCountry "GER"]
[SourceTitle "playchess.com"]
[Source "ChessBase"]
[SourceQuality "1"]
[TimeControl "40/5400+30:1800+30"]

1. e4 {[%emt 0:00:03]} c5 {[%emt 0:02:22]} 2. d4 {[%emt 0:00:04]} cxd4 {[%emt 0:00:12]} 3. c3 {[%emt 0:00:02]} Nf6 {[%emt 0:00:18]} 4. e5 {[%emt 0:00:08]} Nd5 {[%emt 0:00:08]} 5. Qxd4 {[%emt 0:00:51]} e6 {[%emt 0:00:45]} 6. Bd3 {[%emt 0:00:35]} Nc6 {[%emt 0:14:17]} 7. Qe4 {[%emt 0:00:45]} d6 {[%emt 0:04:10]} 8. Nf3 {[%emt 1:32:02]} f6 {[%emt 0:26:08]} 9. exd6 {[%emt 0:11:21]} Bxd6 {[%emt 0:00:34]} 10. O-O {[%emt 1:20:57]} f5 {[%emt 0:01:02]} 11. Qe2 {[%emt 0:00:32]} O-O {[%emt 0:02:02]} 12. Rd1 {[%emt 0:01:03]} Qe7 {[%emt 0:08:58]} 13. Bc4 {[%emt 0:07:29]} Nf4 {[%emt 0:36:04]} 14. Qe3 {[%emt 0:06:27]} Bc7 {[%emt 0:02:09]} 15. Na3 {[%emt 0:05:06]} Kh8 {[%emt 0:03:58]} 16. Nb5 {[%emt 0:00:46]} Bb8 {[%emt 0:00:18]} 17. b3 {[%emt 0:00:52]} Rd8 {[%emt 0:08:59]} 18. Ba3 {[%emt 0:01:01]} Qf6 {[%emt 0:00:15]} 19. Bd6 {[%emt 0:02:40]} Bxd6 {[%emt 0:05:00]} 20. Nxd6 {[%emt 0:00:07]} Ng6 {[%emt 0:03:54]} 21. Ng5 {[%emt 0:07:29]} f4 {[%emt 0:02:51]} 22. Qh3 {[%emt 0:00:15]} h6 {[%emt 0:02:02]} 23. Ngf7+ {[%emt 0:00:26]} Kh7 {[%emt 0:00:11]} 24. Nxd8 {[%emt 0:00:11]} Nxd8 {[%emt 0:00:19]} 25. Bd3 {[%emt 0:03:43]} Bd7 {[%emt 0:00:35]} 26. Qh5 {[%emt 0:01:27]} Bc6 {[%emt 0:00:32]} 27. Ne4 {[%emt 0:00:47]} Qe5 {[%emt 0:00:51]} 28. Qxe5 {[%emt 0:04:42]} Nxe5 {[%emt 0:00:02]} 29. Bc2 {[%emt 0:00:09]} Kg8 {[%emt 0:00:28]} 30. Re1 {[%emt 0:01:27]} Ndf7 {[%emt 0:00:45]} 31. f3 {[%emt 0:00:40]} Kf8 {[%emt 0:00:23]} 32. Rad1 {[%emt 0:00:06]} Ke7 {[%emt 0:00:00]} 33. Kf2 {[%emt 0:02:21]} g5 {[%emt 0:00:00]} 34. h3 {[%emt 0:05:59]} Rc8 {[%emt 0:00:00]} 35. Nd6 {[%emt 0:01:35]} Nxd6 {[%emt 0:00:38]} 36. Rxe5 {[%emt 0:00:02]} Nf7 {[%emt 0:00:57]} 37. Re2 {[%emt 0:02:05]} b5 {[%emt 0:00:35]} 38. Bf5 {[%emt 0:00:58]} Nd8 {[%emt 0:00:33]} 39. Bd3 {[%emt 0:00:43]} a6 {[%emt 0:00:31]} 40. c4 {[%emt 0:00:23]} b4 {[%emt 0:00:39]} 41. a3 {[%emt 0:44:10]} Rb8 {[%emt 0:02:10]} 42. Ra2 {[%emt 0:00:00]} a5 {[%emt 0:03:00]} 43. axb4 {[%emt 0:00:00]} Rxb4 {[%emt 0:00:14]} 44. Rxa5 {[%emt 0:00:00]} Rxb3 {[%emt 0:00:10]} 45. Ra7+ {[%emt 0:09:00]} Kf6 {[%emt 0:07:56]} 46. Ke2 {[%emt 0:00:00]} Rb2+ {[%emt 0:00:08]} 47. Rd2 {[%emt 0:00:00]} Rb8 {[%emt 0:00:47]} 48. Rc7 {[%emt 0:00:00]} Ba8 {[%emt 0:05:01]} 49. Ra2 {[%emt 0:00:00]} Nf7 {[%emt 0:00:22]} 50. Kd2 {[%emt 0:00:00]} h5 {[%emt 0:00:42]} 51. Kc3 {[%emt 0:00:00]} g4 {[%emt 0:03:47]} 52. hxg4 {[%emt 0:00:00]} hxg4 {[%emt 0:00:03]} 53. fxg4 {[%emt 0:00:00]} Ne5 {[%emt 0:01:50]} 54. Rf2 {[%emt 0:02:56]} Nxd3 {[%emt 0:01:47]} 55. Kxd3 {[%emt 0:00:52]} e5 {[%emt 0:00:03]} 56. c5 {[%emt 0:01:23]} Bd5 {[%emt 0:04:56]} 57. Rd7 {[%emt 0:02:53]} Be6 {[%emt 0:00:40]} 58. Rd6 {[%emt 0:00:33]} Rb3+ {[%emt 0:00:32]} 59. Kd2 {[%emt 0:02:22]} Rb5 {[%emt 0:01:12]} 60. g5+ {[%emt 0:01:23]} Ke7 {[%emt 0:00:29]} 61. Rc6 {[%emt 0:00:39]} Rb2+ {[%emt 0:00:21]} 62. Ke1 {[%emt 0:04:29]} Rb1+ {[%emt 0:00:23]} 63. Kd2 {[%emt 0:01:50]} 1/2-1/2

[Event "Niedersachsen-ch Meister 2024"]
[Site "Verden Aller"]
[Date "2024.01.05"]
[Round "4.6"]
[White "Mimkes, Antal"]
[Black "Mueer, Sebastian"]
[Result "0-1"]
[ECO "B25"]
[WhiteElo "1823"]
[BlackElo "2189"]
[Annotator "RC"]
[PlyCount "70"]
[EventDate "2024.01.01"]
[EventType "swiss"]
[EventCountry "GER"]
[SourceTitle "playchess.com"]
[Source "ChessBase"]
[SourceQuality "1"]
[TimeControl "40/5400+30:1800+30"]

1. e4 {[%emt 0:00:03]} g6 {[%emt 0:10:54]} 2. Nc3 {[%emt 0:00:20]} Bg7 {[%emt 0:00:08]} 3. f4 {[%emt 0:00:15]} c5 {[%emt 0:00:18]} 4. Nf3 {[%emt 0:00:16]} Nc6 {[%emt 0:00:08]} 5. g3 {[%emt 0:00:14]} d6 {[%emt 0:00:07]} 6. Bg2 {[%emt 0:00:13]} e6 {[%emt 0:00:33]} 7. O-O {[%emt 0:00:20]} Nge7 {[%emt 0:00:07]} 8. d3 {[%emt 0:00:22]} O-O {[%emt 0:00:20]} 9. g4 {[%emt 0:00:59]} f5 {[%emt 0:00:16]} 10. exf5 {[%emt 0:00:05]} exf5 {[%emt 0:01:20]} 11. g5 {[%emt 0:00:15]} d5 {[%emt 0:00:20]} 12. Kh1 {[%emt 0:03:31]} d4 {[%emt 0:00:57]} 13. Ne2 {[%emt 0:00:18]} Nd5 {[%emt 0:01:31]} 14. Rb1 {[%emt 0:02:43]} Re8 {[%emt 0:01:20]} 15. h4 {[%emt 0:02:39]} Ne3 {[%emt 0:08:11]} 16. Bxe3 {[%emt 0:00:19]} Rxe3 {[%emt 0:00:03]} 17. Neg1 {[%emt 0:02:08]} Be6 {[%emt 0:00:33]} 18. a4 {[%emt 0:07:41]} Qd6 {[%emt 0:01:34]} 19. Nh3 {[%emt 0:00:56]} Nb4 {[%emt 0:12:14]} 20. Qd2 {[%emt 0:09:38]} Nd5 {[%emt 0:01:25]} 21. Nfg1 {[%emt 0:03:17]} Bd7 {[%emt 0:01:58]} 22. b3 {[%emt 0:04:00]} Bc6 {[%emt 0:00:32]} 23. Rbe1 {[%emt 0:01:36]} Rae8 {[%emt 0:00:18]} 24. Qf2 {[%emt 0:04:45]} R8e6 {[%emt 0:09:36]} 25. h5 {[%emt 0:03:51]} Qe7 {[%emt 0:01:50]} 26. Nf3 {[%emt 0:03:10]} Re2 {[%emt 0:04:48]} 27. Rxe2 {[%emt 0:01:20]} Rxe2 {[%emt 0:00:03]} 28. Re1 {[%emt 0:02:51]} Rxf2 {[%emt 0:05:21]} 29. Rxe7 {[%emt 0:00:09]} Rxc2 {[%emt 0:01:25]} 30. Ne1 {[%emt 0:02:43]} Rxg2 {[%emt 0:07:27]} 31. Rxg7+ {[%emt 0:01:55]} Kxg7 {[%emt 0:00:02]} 32. h6+ {[%emt 0:00:09]} Kf7 {[%emt 0:00:06]} 33. Kxg2 {[%emt 0:00:14]} Nxf4+ {[%emt 0:00:31]} 34. Kg3 {[%emt 0:00:23]} Nxh3 {[%emt 0:02:56]} 35. Kxh3 {[%emt 0:00:05]} Bd5 {[%emt 0:00:39]} 0-1